fUSD/lending_fUSD_20251115
["ID","MTS","AMOUNT","RATE_DAILY","PERIOD"]
[394076820,1763244646666,-793.0,0.00036523,2]
[394076821,1763244646676,-6487.0,0.00036523,2]
[394076822,1763244646685,-3170.0,0.00036523,2]
[394076823,1763244646695,-200.0,0.00036577,2]
[394076824,1763244646705,-300.0,0.00036626,10]
[394076825,1763244646714,-25000.0,0.00036627,2]
[394076826,1763244646723,-5000.0,0.00036653,2]
[394076827,1763244646732,-5000.0,0.00036664,2]
[394076828,1763244646743,-215.10664739,0.00036693,2]
[394076829,1763244646752,-2500.0,0.00036695,2]
[394076830,1763244646762,-5000.0,0.00036705,2]
[394076831,1763244646771,-4520.9,0.00036724,2]
[394076832,1763244646781,-181.53,0.00036758,120]
[394076833,1763244646790,-2500.0,0.0003677,2]
[394076834,1763244646799,-150.0,0.00036782,2]
[394076835,1763244646808,-608.0,0.00036782,2]
[394076836,1763244646817,-1318.0,0.00036782,2]
[394076837,1763244646827,-300.0,0.00036815,10]
[394076838,1763244646837,-25000.0,0.00036816,2]
[394076839,1763244646847,-5000.0,0.00036828,2]
[394076840,1763244646855,-5000.0,0.00036834,2]
[394076841,1763244646864,-5000.0,0.00036848,2]
[394076842,1763244646874,-215.10664739,0.0003688,2]
[394076843,1763244646883,-12647.77,0.00036889,2]
[394076844,1763244646892,-4408.58,0.000369,2]
[394076845,1763244646901,-753.2,0.000369,14]
[394076846,1763244646911,-481.59,0.000369,2]
[394076847,1763244646920,-5000.0,0.00036917,2]
[394076848,1763244646929,-5000.0,0.00036926,2]
[394076849,1763244646940,-5000.0,0.00036941,2]
[394076850,1763244646950,-5000.0,0.00036952,2]
[394076851,1763244646959,-2500.0,0.00036953,2]
[394076852,1763244646968,-2500.0,0.00036963,2]
[394076853,1763244646977,-311.1,0.00036974,60]
[394076854,1763244646986,-500.0,0.00036975,2]
[394076855,1763244646996,-500.0,0.00036986,15]
[394076856,1763244647005,-500.0,0.00036986,15]
[394076857,1763244647015,-500.0,0.00036986,15]
[394076858,1763244647024,-500.0,0.00036986,15]
[394076859,1763244647033,-500.0,0.00036986,15]
[394076860,1763244647042,-500.0,0.00036986,15]
[394076861,1763244647051,-506.01457856,0.00036986,15]
[394076862,1763244647060,-500.0,0.00036986,15]
[394076863,1763244647069,-500.0,0.00036986,15]
[394076864,1763244647079,-500.0,0.00036986,15]
[394076865,1763244647088,-500.0,0.00036986,15]
[394076866,1763244647097,-500.0,0.00036986,15]
[394076867,1763244647106,-179.75488624,0.00036986,15]
[394076868,1763244647115,-25000.0,0.00036996,2]
[394076869,1763244647124,-481.59,0.00037029,2]
[394076870,1763244647133,-215.10664739,0.00037065,2]
[394076871,1763244647142,-300.0,0.00037151,3]
[394076872,1763244647151,-481.59,0.00037159,2]
[394076873,1763244647161,-194.12066779,0.000372,120]
[394076874,1763244647170,-300.0,0.00037289,10]
[394076875,1763244647180,-502.28895398,0.00037434,30]
[394076876,1763244647189,-215.10664739,0.00037448,2]
[394076877,1763244647198,-150.0,0.00037449,30]
[394076878,1763244647207,-1801.79,0.000375,2]
[394076879,1763244647216,-531.0,0.00037696,30]
[394076880,1763244647226,-215.10664739,0.00037776,2]
[394076881,1763244647235,-215.10664739,0.00037928,2]
[394076882,1763244647244,-531.0,0.00037973,30]
[394076883,1763244647253,-2077.89,0.00037995,2]
[394076884,1763244647263,-753.2,0.00038,14]
[394076885,1763244647272,-500.0,0.00038063,30]
[394076886,1763244647281,-150.0,0.0003807,2]
[394076887,1763244647290,-184.82,0.0003807,2]
[394076888,1763244647298,-1000.0,0.000381,7]
[394076889,1763244647307,-400.0,0.00038247,5]
[394076890,1763244647317,-215.10664739,0.00038249,2]
[394076891,1763244647326,-1801.79,0.000383,2]
[394076892,1763244647335,-500.0,0.00038356,2]
[394076893,1763244647344,-2792.78,0.00038356,2]
[394076894,1763244647353,-500.0,0.00038356,2]
[394076895,1763244647363,-4398.58,0.00038356,2]
[394076896,1763244647372,-300.0,0.00038356,2]
[394076897,1763244647381,-300.0,0.00038356,2]
[394076898,1763244647390,-317.03300854,0.00038356,2]
[394076899,1763244647400,-662.45,0.00038356,2]
[394076900,1763244647409,-6000.0,0.00038356,5]
[394076901,1763244647419,-344.39207861,0.00038433,5]
[394076902,1763244647427,-215.10664739,0.00038449,2]
[394076903,1763244647436,-3576.39248094,0.00038577,2]
[394076904,1763244647445,-12852.43058998,0.00038577,2]
[394076905,1763244647454,-297.16919071,0.00038577,15]
[394076906,1763244647463,-1502.14270285,0.00038583,2]
[394076907,1763244647472,-274.96797838,0.0003863,2]
[394076908,1763244647481,-2792.78,0.0003863,2]
[394076909,1763244647490,-500.0,0.0003863,2]
[394076910,1763244647499,-4398.58,0.0003863,2]
[394076911,1763244647508,-337.19090708,0.0003863,2]
[394076912,1763244647517,-300.0,0.0003863,2]
[394076913,1763244647527,-662.45,0.0003863,2]
[394076914,1763244647536,-610.0,0.0003863,5]
[394076915,1763244647545,-700.06,0.0003863,2]
[394076916,1763244647554,-500.0,0.000387,120]
[394076917,1763244647564,-500.0,0.000387,120]
[394076918,1763244647574,-500.0,0.000387,120]
[394076919,1763244647583,-500.0,0.000387,120]
[394076920,1763244647592,-151.0,0.00038712,120]
[394076921,1763244647601,-151.0,0.00038712,120]
[394076922,1763244647611,-153.797539,0.00038712,120]
[394076923,1763244647620,-151.0,0.00038712,120]
[394076924,1763244647630,-153.285804,0.00038712,120]
[394076925,1763244647640,-153.285804,0.00038712,120]
[394076926,1763244647649,-153.285804,0.00038712,120]
[394076927,1763244647659,-153.285804,0.00038712,120]
[394076928,1763244647671,-151.0,0.00038712,120]
[394076929,1763244647681,-151.0,0.00038712,120]
[394076930,1763244647690,-151.0,0.00038712,120]
[394076931,1763244647698,-151.0,0.00038712,120]
[394076932,1763244647707,-151.0,0.00038712,120]
[394076933,1763244647716,-151.0,0.00038712,120]
[394076934,1763244647726,-157.296087,0.00038712,120]
[394076935,1763244647735,-151.0,0.00038712,120]
[394076936,1763244647744,-151.0,0.00038712,120]
[394076937,1763244647753,-473.7554,0.00038712,120]
[394076938,1763244647763,-473.7554,0.00038712,120]
[394076939,1763244647772,-473.7554,0.00038712,120]
[394076940,1763244647782,-151.0,0.00038712,120]
[394076941,1763244647791,-151.0,0.00038712,120]
[394076942,1763244647801,-473.7554,0.00038712,120]
[394076943,1763244647810,-151.0,0.00038712,120]
[394076944,1763244647819,-151.0,0.00038712,120]
[394076945,1763244647829,-152.623247,0.00038712,120]
[394076946,1763244647839,-1348.898314,0.00038712,28]
[394076947,1763244647848,-1348.898314,0.00038712,28]
[394076948,1763244647858,-1348.898314,0.00038712,28]
[394076949,1763244647867,-1348.898314,0.00038712,28]
[394076950,1763244647877,-151.0,0.00038712,120]
[394076951,1763244647887,-215.191817,0.00038712,120]
[394076952,1763244647896,-163.451954,0.00038712,120]
[394076953,1763244647905,-163.451954,0.00038712,120]
[394076954,1763244647915,-163.451954,0.00038712,120]
[394076955,1763244647925,-163.451954,0.00038712,120]
[394076956,1763244647934,-151.0,0.00038712,120]
[394076957,1763244647944,-255.28975,0.00038712,120]
[394076958,1763244647953,-579.51,0.00038712,2]
[394076959,1763244647963,-152.02,0.00038715,120]
[394076960,1763244647972,-152.02,0.00038715,120]
[394076961,1763244647982,-215.10664739,0.00038718,2]
[394076962,1763244647992,-152.02,0.00038815,120]
[394076963,1763244648002,-152.02,0.00038815,120]
[394076964,1763244648011,-753.2,0.000389,14]
[394076965,1763244648021,-2792.78,0.00038904,2]
[394076966,1763244648030,-500.0,0.00038904,2]
[394076967,1763244648039,-4398.58,0.00038904,2]
[394076968,1763244648049,-300.0,0.00038904,2]
[394076969,1763244648058,-662.45,0.00038904,2]
[394076970,1763244648068,-167.083598,0.00038905,120]
[394076971,1763244648077,-151.0,0.00038905,120]
[394076972,1763244648087,-151.0,0.00038905,120]
[394076973,1763244648097,-161.445309,0.00038905,120]
[394076974,1763244648107,-151.0,0.00038905,120]
[394076975,1763244648117,-236.028036,0.00038905,120]
[394076976,1763244648126,-151.0,0.00038905,120]
[394076977,1763244648135,-151.0,0.00038905,120]
[394076978,1763244648145,-151.0,0.00038905,120]
[394076979,1763244648154,-151.0,0.00038905,120]
[394076980,1763244648164,-151.0,0.00038905,120]
[394076981,1763244648173,-151.0,0.00038905,120]
[394076982,1763244648183,-151.0,0.00038905,120]
[394076983,1763244648192,-213.876581,0.00038905,120]
[394076984,1763244648202,-151.0,0.00038905,120]
[394076985,1763244648212,-164.100835,0.00038905,120]
[394076986,1763244648222,-151.0,0.00038905,120]
[394076987,1763244648233,-213.876581,0.00038905,120]
[394076988,1763244648243,-151.0,0.00038905,120]
[394076989,1763244648252,-151.0,0.00038905,120]
[394076990,1763244648262,-151.0,0.00038905,120]
[394076991,1763244648272,-213.876581,0.00038905,120]
[394076992,1763244648281,-151.0,0.00038905,120]
[394076993,1763244648291,-213.876581,0.00038905,120]
[394076994,1763244648301,-151.0,0.00038905,120]
[394076995,1763244648310,-151.0,0.00038905,120]
[394076996,1763244648321,-163.102772,0.00038905,120]
[394076997,1763244648331,-155.598101,0.00038905,120]
[394076998,1763244648341,-246.593694,0.00038905,120]
[394076999,1763244648351,-246.593694,0.00038905,120]
[394077000,1763244648361,-246.593694,0.00038905,120]
[394077001,1763244648370,-246.593694,0.00038905,120]
[394077002,1763244648380,-151.0,0.00038905,120]
[394077003,1763244648390,-151.0,0.00038905,120]
[394077004,1763244648399,-151.0,0.00038905,120]
[394077005,1763244648410,-151.0,0.00038905,120]
[394077006,1763244648419,-152.02,0.00038915,120]
[394077007,1763244648429,-152.02,0.00038915,120]
[394077008,1763244648439,-311.1,0.00038986,60]
[394077009,1763244648448,-150.0,0.00038986,2]
[394077010,1763244648458,-175.0,0.00039,2]
[394077011,1763244648467,-152.02,0.00039015,120]
[394077012,1763244648477,-152.02,0.00039015,120]
[394077013,1763244648487,-416.61,0.00039041,2]
[394077014,1763244648496,-215.10664739,0.0003908,2]
[394077015,1763244648506,-1801.79,0.000391,30]
[394077016,1763244648515,-152.02,0.00039115,120]
[394077017,1763244648525,-152.02,0.00039115,120]
[394077018,1763244648534,-531.0,0.00039146,90]
[394077019,1763244648544,-2792.78,0.00039178,2]
[394077020,1763244648553,-500.0,0.00039178,2]
[394077021,1763244648563,-4398.58,0.00039178,2]
[394077022,1763244648573,-300.0,0.00039178,2]
[394077023,1763244648583,-662.45,0.00039178,2]
[394077024,1763244648594,-1000.0,0.000392,7]
[394077025,1763244648603,-215.10664739,0.00039204,2]
[394077026,1763244648613,-152.0,0.00039207,4]
[394077027,1763244648623,-152.02,0.00039215,120]
[394077028,1763244648632,-152.02,0.00039215,120]
[394077029,1763244648642,-152.02,0.00039315,120]
[394077030,1763244648651,-152.02,0.00039315,120]
[394077031,1763244648662,-500.0,0.00039342,10]
[394077032,1763244648674,-322.46,0.00039372,30]
[394077033,1763244648684,-152.02,0.00039415,120]
[394077034,1763244648694,-152.02,0.00039415,120]
[394077035,1763244648703,-2792.78,0.00039452,2]
[394077036,1763244648713,-500.0,0.00039452,2]
[394077037,1763244648723,-4398.58,0.00039452,2]
[394077038,1763244648732,-300.0,0.00039452,2]
[394077039,1763244648742,-662.45,0.00039452,2]
[394077040,1763244648753,-152.02,0.00039515,120]
[394077041,1763244648762,-365.048,0.00039523,2]
[394077042,1763244648772,-6487.0,0.00039523,2]
[394077043,1763244648782,-3170.0,0.00039523,2]
[394077044,1763244648792,-177.29,0.00039534,2]
[394077045,1763244648801,-1400.12,0.00039589,2]
[394077046,1763244648812,-700.06,0.00039589,2]
[394077047,1763244648821,-700.06,0.00039589,2]
[394077048,1763244648830,-700.06,0.00039589,2]
[394077049,1763244648841,-700.06,0.00039589,2]
[394077050,1763244648851,-700.06,0.00039589,2]
[394077051,1763244648860,-700.06,0.00039589,2]
[394077052,1763244648870,-152.02,0.00039615,120]
[394077053,1763244648879,-215.10664739,0.00039661,2]
[394077054,1763244648889,-150.0,0.00039698,55]
[394077055,1763244648899,-531.0,0.00039699,90]
[394077056,1763244648909,-152.02,0.00039715,120]
[394077057,1763244648919,-2792.78,0.00039726,2]
[394077058,1763244648929,-500.0,0.00039726,2]
[394077059,1763244648938,-4398.58,0.00039726,2]
[394077060,1763244648948,-300.0,0.00039726,2]
[394077061,1763244648958,-662.45,0.00039726,2]
[394077062,1763244648968,-608.0,0.00039782,2]
[394077063,1763244648977,-1313.0,0.00039782,2]
[394077064,1763244648988,-1567.61,0.00039798,30]
[394077065,1763244648998,-152.02,0.00039815,120]
[394077066,1763244649008,-1208.37,0.00039863,2]
[394077067,1763244649018,-550.16,0.00039863,2]
[394077068,1763244649028,-416.61,0.00039863,2]
[394077069,1763244649038,-150.0,0.00039863,2]
[394077070,1763244649048,-1439.816,0.00039872,56]
[394077071,1763244649058,-215.10664739,0.00039876,2]
[394077072,1763244649067,-152.02,0.00039915,120]
[394077073,1763244649077,-500.0,0.00039972,30]
[394077074,1763244649087,-150.0,0.00039996,9]
[394077075,1763244649099,-150.0,0.00039998,25]
[394077076,1763244649109,-175.0,0.0004,30]
[394077077,1763244649119,-150.0,0.0004,60]
[394077078,1763244649129,-2792.78,0.0004,2]
[394077079,1763244649139,-240.00925603,0.0004,5]
[394077080,1763244649149,-500.0,0.0004,2]
[394077081,1763244649159,-4398.58,0.0004,2]
[394077082,1763244649169,-6028.8408608,0.0004,4]
[394077083,1763244649179,-300.0,0.0004,2]
[394077084,1763244649190,-662.45,0.0004,2]
[394077085,1763244649200,-161.64621316,0.0004,7]
[394077086,1763244649210,-215.10664739,0.00040014,2]
[394077087,1763244649221,-152.02,0.00040015,120]
[394077088,1763244649231,-300.0,0.00040101,2]
[394077089,1763244649241,-152.02,0.00040115,120]
[394077090,1763244649251,-300.0,0.00040193,99]
[394077091,1763244649261,-2449.93858315,0.00040196,2]
[394077092,1763244649271,-152.02,0.00040215,120]
[394077093,1763244649280,-150.0,0.00040242,99]
[394077094,1763244649290,-2792.78,0.00040273,2]
[394077095,1763244649299,-500.0,0.00040273,2]
[394077096,1763244649309,-4398.58,0.00040273,2]
[394077097,1763244649319,-300.0,0.00040273,2]
[394077098,1763244649328,-662.45,0.00040273,2]
[394077099,1763244649338,-1000.0,0.000403,7]
[394077100,1763244649348,-550.16,0.00040301,2]
[394077101,1763244649358,-550.16,0.00040301,2]
[394077102,1763244649367,-550.16,0.00040301,2]
[394077103,1763244649377,-550.16,0.00040301,2]
[394077104,1763244649387,-550.16,0.00040301,2]
[394077105,1763244649396,-550.16,0.00040301,2]
[394077106,1763244649405,-152.02,0.00040315,120]
[394077107,1763244649415,-4899.0,0.00040349,2]
[394077108,1763244649425,-300.0,0.00040367,2]
[394077109,1763244649434,-300.0,0.00040377,2]
[394077110,1763244649443,-300.0,0.00040392,2]
[394077111,1763244649453,-4899.0,0.00040395,2]
[394077112,1763244649462,-300.0,0.00040405,2]
[394077113,1763244649472,-152.02,0.00040415,120]
[394077114,1763244649482,-300.0,0.00040432,2]
[394077115,1763244649491,-300.0,0.00040478,2]
[394077116,1763244649501,-515.53639077,0.0004048,30]
[394077117,1763244649511,-300.0,0.00040487,2]
[394077118,1763244649520,-478.16,0.00040493,2]
[394077119,1763244649530,-478.16,0.00040493,2]
[394077120,1763244649539,-478.16,0.00040493,2]
[394077121,1763244649549,-478.16,0.00040493,2]
[394077122,1763244649558,-478.16,0.00040493,2]
[394077123,1763244649567,-956.32,0.00040493,2]
[394077124,1763244649578,-300.0,0.00040497,2]
[394077125,1763244649589,-300.0,0.00040498,2]
[394077126,1763244649600,-300.0,0.000405,2]
[394077127,1763244649610,-300.0,0.00040507,2]
[394077128,1763244649619,-152.02,0.00040515,120]
[394077129,1763244649629,-150.0,0.00040515,12]
[394077130,1763244649639,-300.0,0.00040529,2]
[394077131,1763244649648,-215.10664739,0.00040541,2]
[394077132,1763244649658,-300.0,0.00040543,2]
[394077133,1763244649671,-2792.78,0.00040547,2]
[394077134,1763244649828,-4398.58,0.00040547,2]
[394077135,1763244649839,-300.0,0.00040547,2]
[394077136,1763244649849,-662.45,0.00040547,2]
[394077137,1763244649860,-700.06,0.00040548,2]
[394077138,1763244649870,-700.06,0.00040548,2]
[394077139,1763244649880,-700.06,0.00040548,2]
[394077140,1763244649892,-700.06,0.00040548,2]
[394077141,1763244649903,-700.06,0.00040548,2]
[394077142,1763244649913,-700.06,0.00040548,2]
[394077143,1763244649922,-300.0,0.00040551,2]
[394077144,1763244649933,-300.0,0.00040553,2]
[394077145,1763244649942,-300.0,0.00040576,2]
[394077146,1763244649952,-9827.2278,0.00040585,2]
[394077147,1763244649961,-300.0,0.00040589,2]
[394077148,1763244649971,-531.0,0.00040596,90]
[394077149,1763244649981,-300.0,0.00040605,2]
[394077150,1763244649991,-150.0,0.00040622,50]
[394077151,1763244650000,-237.83278585,0.00040623,50]
[394077152,1763244650010,-339.97,0.0004063,2]
[394077153,1763244650019,-1208.37,0.0004063,2]
[394077154,1763244650028,-275.21,0.0004063,2]
[394077155,1763244650038,-372.04,0.0004063,2]
[394077156,1763244650048,-1208.37,0.0004063,2]
[394077157,1763244650058,-169.4,0.0004063,2]
[394077158,1763244650067,-416.61,0.0004063,2]
[394077159,1763244650076,-1208.37,0.0004063,2]
[394077160,1763244650086,-169.4,0.0004063,2]
[394077161,1763244650097,-150.0,0.0004063,2]
[394077162,1763244650107,-416.61,0.0004063,2]
[394077163,1763244650116,-1208.37,0.0004063,2]
[394077164,1763244650125,-150.0,0.0004063,2]
[394077165,1763244650134,-169.4,0.0004063,2]
[394077166,1763244650143,-416.61,0.0004063,2]
[394077167,1763244650152,-150.0,0.0004063,2]
[394077168,1763244650162,-169.4,0.0004063,2]
[394077169,1763244650171,-1208.37,0.0004063,2]
[394077170,1763244650181,-416.61,0.0004063,2]
[394077171,1763244650190,-416.61,0.0004063,2]
[394077172,1763244650200,-169.4,0.0004063,2]
[394077173,1763244650209,-150.0,0.0004063,2]
[394077174,1763244650219,-1208.37,0.0004063,2]
[394077175,1763244650228,-1208.37,0.0004063,2]
[394077176,1763244650238,-150.0,0.0004063,2]
[394077177,1763244650248,-416.61,0.0004063,2]
[394077178,1763244650258,-169.4,0.0004063,2]
[394077179,1763244650267,-150.0,0.00040685,2]
[394077180,1763244650277,-150.0,0.00040685,2]
[394077181,1763244650286,-325.01,0.00040685,2]
[394077182,1763244650301,-150.0,0.00040685,2]
[394077183,1763244650310,-150.0,0.00040685,2]
[394077184,1763244650319,-150.0,0.00040685,2]
[394077185,1763244650328,-300.0,0.00040686,2]
[394077186,1763244650338,-300.0,0.00040687,2]
[394077187,1763244650347,-300.0,0.00040691,2]
[394077188,1763244650356,-300.0,0.00040693,2]
[394077189,1763244650365,-300.0,0.00040699,2]
[394077190,1763244650374,-300.0,0.00040721,2]
[394077191,1763244650383,-300.0,0.00040721,2]
[394077192,1763244650392,-300.0,0.00040724,2]
[394077193,1763244650402,-300.0,0.00040728,2]
[394077194,1763244650411,-300.0,0.00040731,2]
[394077195,1763244650423,-300.0,0.00040762,2]
[394077196,1763244650432,-300.0,0.00040765,2]
[394077197,1763244650441,-300.0,0.0004077,2]
[394077198,1763244650451,-300.0,0.00040785,2]
[394077199,1763244650460,-300.0,0.00040793,2]
[394077200,1763244650469,-372.45,0.000408,120]
[394077201,1763244650478,-300.0,0.00040802,2]
[394077202,1763244650488,-215.10664739,0.00040807,2]
[394077203,1763244650496,-2792.78,0.00040821,2]
[394077204,1763244650506,-4398.58,0.00040821,2]
[394077205,1763244650515,-300.0,0.00040821,2]
[394077206,1763244650524,-662.45,0.00040821,2]
[394077207,1763244650533,-151.0,0.00040821,120]
[394077208,1763244650543,-151.0,0.00040821,120]
[394077209,1763244650552,-223.859606,0.00040821,120]
[394077210,1763244650561,-223.859606,0.00040821,120]
[394077211,1763244650570,-223.859606,0.00040821,120]
[394077212,1763244650580,-151.0,0.00040821,120]
[394077213,1763244650588,-223.859606,0.00040821,120]
[394077214,1763244650598,-151.0,0.00040821,120]
[394077215,1763244650607,-151.0,0.00040821,120]
[394077216,1763244650617,-151.0,0.00040821,120]
[394077217,1763244650626,-160.374577,0.00040821,120]
[394077218,1763244650635,-151.0,0.00040821,120]
[394077219,1763244650645,-151.0,0.00040821,120]
[394077220,1763244650654,-151.0,0.00040821,120]
[394077221,1763244650665,-151.0,0.00040821,120]
[394077222,1763244650675,-151.0,0.00040821,120]
[394077223,1763244650684,-163.018163,0.00040821,120]
[394077224,1763244650693,-151.0,0.00040821,120]
[394077225,1763244650702,-151.0,0.00040821,120]
[394077226,1763244650713,-224.439472,0.00040821,120]
[394077227,1763244650722,-355.273089,0.00040821,120]
[394077228,1763244650731,-355.273089,0.00040821,120]
[394077229,1763244650742,-151.0,0.00040821,120]
[394077230,1763244650751,-355.273089,0.00040821,120]
[394077231,1763244650760,-151.0,0.00040821,120]
[394077232,1763244650769,-355.273089,0.00040821,120]
[394077233,1763244650778,-151.0,0.00040821,120]
[394077234,1763244650787,-151.0,0.00040821,120]
[394077235,1763244650797,-151.0,0.00040821,120]
[394077236,1763244650806,-151.0,0.00040821,120]
[394077237,1763244650815,-151.0,0.00040821,120]
[394077238,1763244650824,-157.894586,0.00040821,120]
[394077239,1763244650833,-151.0,0.00040821,120]
[394077240,1763244650842,-174.921219,0.00040821,120]
[394077241,1763244650851,-175.174058,0.00040821,120]
[394077242,1763244650861,-221.063607,0.00040821,120]
[394077243,1763244650871,-151.0,0.00040821,120]
[394077244,1763244650881,-179.53097,0.00040821,120]
[394077245,1763244650890,-179.53097,0.00040821,120]
[394077246,1763244650899,-179.53097,0.00040821,120]
[394077247,1763244650909,-179.53097,0.00040821,120]
[394077248,1763244650918,-300.0,0.00040833,2]
[394077249,1763244650927,-300.0,0.00040838,2]
[394077250,1763244650937,-215.10664739,0.00040838,2]
[394077251,1763244650946,-150.0,0.00040848,60]
[394077252,1763244650956,-300.0,0.00040855,2]
[394077253,1763244650966,-300.0,0.00040861,2]
[394077254,1763244650975,-150.0,0.00040863,103]
[394077255,1763244650984,-300.0,0.00040882,2]
[394077256,1763244650994,-300.0,0.00040893,2]
[394077257,1763244651003,-300.0,0.00040899,2]
[394077258,1763244651013,-300.0,0.00040907,2]
[394077259,1763244651022,-300.0,0.00040909,2]
[394077260,1763244651031,-300.0,0.00040911,2]
[394077261,1763244651040,-300.0,0.00040914,2]
[394077262,1763244651050,-300.0,0.00040941,2]
[394077263,1763244651059,-300.0,0.00040947,2]
[394077264,1763244651068,-300.0,0.00040953,2]
[394077265,1763244651078,-300.0,0.00040959,2]
[394077266,1763244651087,-300.0,0.00040964,2]
[394077267,1763244651097,-164.18539368,0.00040967,2]
[394077268,1763244651106,-4899.0,0.00040975,120]
[394077269,1763244651115,-300.0,0.00040975,2]
[394077270,1763244651125,-300.0,0.00040983,2]
[394077271,1763244651134,-300.0,0.00040985,2]
[394077272,1763244651143,-300.0,0.00040986,14]
[394077273,1763244651153,-300.0,0.00040992,2]
[394077274,1763244651162,-311.1,0.00040998,60]
[394077275,1763244651171,-575.19852603,0.00041,30]
[394077276,1763244651179,-150.0,0.00041,60]
[394077277,1763244651188,-300.0,0.0004101,2]
[394077278,1763244651198,-300.0,0.00041017,2]
[394077279,1763244651207,-300.0,0.00041029,2]
[394077280,1763244651216,-300.0,0.00041037,2]
[394077281,1763244651225,-300.0,0.00041047,2]
[394077282,1763244651234,-300.0,0.00041062,2]
[394077283,1763244651243,-300.0,0.00041067,2]
[394077284,1763244651253,-481.64025845,0.00041068,120]
[394077285,1763244651262,-300.0,0.00041079,2]
[394077286,1763244651271,-300.0,0.00041086,2]
[394077287,1763244651280,-300.0,0.00041089,2]
[394077288,1763244651289,-2792.78,0.00041095,2]
[394077289,1763244651299,-1000.0,0.00041095,90]
[394077290,1763244651308,-1000.0,0.00041095,90]
[394077291,1763244651317,-1143.62373965,0.00041095,90]
[394077292,1763244651326,-4398.58,0.00041095,2]
[394077293,1763244651335,-300.0,0.00041095,2]
[394077294,1763244651344,-662.45,0.00041095,2]
[394077295,1763244651353,-282.284824,0.00041096,45]
[394077296,1763244651362,-282.284824,0.00041096,45]
[394077297,1763244651371,-282.284824,0.00041096,45]
[394077298,1763244651381,-282.284824,0.00041096,45]
[394077299,1763244651390,-282.284824,0.00041096,45]
[394077300,1763244651399,-282.284824,0.00041096,45]
[394077301,1763244651408,-282.284824,0.00041096,45]
[394077302,1763244651417,-282.284824,0.00041096,45]
[394077303,1763244651427,-300.0,0.00041099,2]
[394077304,1763244651436,-2000.0,0.000411,2]
[394077305,1763244651445,-500.0,0.000411,2]
[394077306,1763244651454,-650.0,0.000411,2]
[394077307,1763244651463,-300.0,0.00041114,2]
[394077308,1763244651472,-300.0,0.00041116,2]
[394077309,1763244651482,-542.53831517,0.00041117,30]
[394077310,1763244651491,-300.0,0.00041139,2]
[394077311,1763244651500,-300.0,0.00041167,2]
[394077312,1763244651509,-300.0,0.00041176,2]
[394077313,1763244651517,-300.0,0.00041184,2]
[394077314,1763244651527,-300.0,0.0004119,2]
[394077315,1763244651536,-300.0,0.00041193,2]
[394077316,1763244651545,-150.0,0.00041194,60]
[394077317,1763244651554,-150.0,0.00041198,14]
[394077318,1763244651564,-300.0,0.00041207,2]
[394077319,1763244651573,-300.0,0.0004121,2]